fUSD/lending_fUSD_20250630
["ID","MTS","AMOUNT","RATE_DAILY","PERIOD"]
[368684675,1751296236984,-490.0,0.00013986,2]
[368684676,1751296236994,-490.0,0.00013986,2]
[368684677,1751296237003,-490.0,0.00013986,2]
[368684678,1751296237012,-797.69,0.00013986,2]
[368684679,1751296237021,-633.91,0.00013986,2]
[368684680,1751296237032,-490.0,0.00013986,2]
[368684681,1751296237041,-951.67,0.00013986,2]
[368684682,1751296237050,-490.0,0.00013986,2]
[368684683,1751296237059,-490.0,0.00013986,2]
[368684684,1751296237069,-1314.64,0.00013986,2]
[368684685,1751296237079,-490.0,0.00013986,2]
[368684686,1751296237088,-490.0,0.00013986,2]
[368684687,1751296237097,-706.06,0.00013986,2]
[368684688,1751296237107,-1155.3,0.00013986,2]
[368684689,1751296237118,-490.0,0.00013986,2]
[368684690,1751296237128,-751.34,0.00013986,2]
[368684691,1751296237137,-1342.07,0.00013986,2]
[368684692,1751296237147,-330.52193127,0.00013986,2]
[368684693,1751296237157,-490.0,0.00013986,2]
[368684694,1751296237167,-490.0,0.00013986,2]
[368684695,1751296237177,-490.0,0.00013986,2]
[368684696,1751296237187,-1533.24,0.00013986,2]
[368684697,1751296237196,-528.75,0.00013986,2]
[368684698,1751296237206,-490.0,0.00013986,2]
[368684699,1751296237215,-3823.38,0.00013986,2]
[368684700,1751296237225,-3088.59,0.00013986,2]
[368684701,1751296237235,-583.15,0.00013986,2]
[368684702,1751296237244,-490.0,0.00013986,2]
[368684703,1751296237255,-1050.1,0.00013986,2]
[368684704,1751296237265,-1224.2,0.00013986,2]
[368684705,1751296237274,-510.35421973,0.00013986,2]
[368684706,1751296237284,-958.35,0.00013986,2]
[368684707,1751296237293,-490.0,0.00013986,2]
[368684708,1751296237302,-490.0,0.00013986,2]
[368684709,1751296237312,-490.0,0.00013986,2]
[368684710,1751296237322,-614.63,0.00013986,2]
[368684711,1751296237331,-1374.85,0.00013986,2]
[368684712,1751296237341,-490.0,0.00013986,2]
[368684713,1751296237351,-490.0,0.00013986,2]
[368684714,1751296237361,-508.93,0.00013986,2]
[368684715,1751296237373,-2208.15,0.00013986,2]
[368684716,1751296237383,-490.0,0.00013986,2]
[368684717,1751296237392,-490.0,0.00013986,2]
[368684718,1751296237401,-676.97,0.00013986,2]
[368684719,1751296237412,-513.98,0.00013986,2]
[368684720,1751296237421,-818.97,0.00013986,2]
[368684721,1751296237431,-490.0,0.00013986,2]
[368684722,1751296237440,-788.64,0.00013986,2]
[368684723,1751296237449,-1057.48,0.00013986,2]
[368684724,1751296237459,-953.49,0.00013986,2]
[368684725,1751296237468,-490.0,0.00013986,2]
[368684726,1751296237478,-894.77,0.00013986,2]
[368684727,1751296237488,-502.88,0.00013986,2]
[368684728,1751296237498,-773.37,0.00013986,2]
[368684729,1751296237507,-490.0,0.00013986,2]
[368684730,1751296237517,-1101.76,0.00013986,2]
[368684731,1751296237526,-699.88,0.00013986,2]
[368684732,1751296237535,-490.0,0.00013986,2]
[368684733,1751296237545,-826.6,0.00013986,2]
[368684734,1751296237554,-1580.43,0.00013986,2]
[368684735,1751296237564,-757.26,0.00013986,2]
[368684736,1751296237573,-1945.02,0.00013986,2]
[368684737,1751296237582,-490.0,0.00013986,2]
[368684738,1751296237591,-490.0,0.00013986,2]
[368684739,1751296237600,-490.0,0.00013986,2]
[368684740,1751296237609,-956.66,0.00013986,2]
[368684741,1751296237620,-2596.2,0.00013986,2]
[368684742,1751296237629,-490.0,0.00013986,2]
[368684743,1751296237640,-490.0,0.00013986,2]
[368684744,1751296237650,-490.0,0.00013986,2]
[368684745,1751296237659,-675.81,0.00013986,2]
[368684746,1751296237668,-2630.83,0.00013986,2]
[368684747,1751296237678,-1641.25,0.00013986,2]
[368684748,1751296237687,-1740.56,0.00013986,2]
[368684749,1751296237697,-571.19,0.00013986,2]
[368684750,1751296237706,-3632.68,0.00013986,2]
[368684751,1751296237715,-1407.37,0.00013986,2]
[368684752,1751296237725,-1605.27,0.00013986,2]
[368684753,1751296237734,-1649.72,0.00013986,2]
[368684754,1751296237744,-490.0,0.00013986,2]
[368684755,1751296237754,-2280.91,0.00013986,2]
[368684756,1751296237763,-490.0,0.00013986,2]
[368684758,1751296237773,-2312.17,0.00013986,2]
[368684759,1751296237783,-663.96,0.00013986,2]
[368684760,1751296237792,-645.96,0.00013986,2]
[368684761,1751296237802,-490.0,0.00013986,2]
[368684762,1751296237812,-1755.19,0.00013986,2]
[368684763,1751296237822,-490.0,0.00013986,2]
[368684764,1751296237831,-490.0,0.00013986,2]
[368684765,1751296237841,-3466.58,0.00013986,2]
[368684766,1751296237851,-622.89,0.00013986,2]
[368684767,1751296237867,-490.0,0.00013986,2]
[368684768,1751296237877,-2280.95,0.00013986,2]
[368684770,1751296237886,-1019.67,0.00013986,2]
[368684772,1751296237896,-524.58,0.00013986,2]
[368684774,1751296237906,-3041.09,0.00013986,2]
[368684775,1751296237915,-2318.16,0.00013986,2]
[368684778,1751296237925,-1382.03,0.00013986,2]
[368684779,1751296237935,-557.5861571,0.00013986,2]
[368684780,1751296237944,-1596.18,0.00013986,2]
[368684781,1751296237954,-490.0,0.00013986,2]
[368684782,1751296237963,-490.0,0.00013986,2]
[368684783,1751296237972,-459.90033838,0.00013986,2]
[368684784,1751296237981,-1671.87,0.00013986,2]
[368684785,1751296237990,-1161.63,0.00013986,2]
[368684786,1751296238000,-500.0,0.00013986,2]
[368684787,1751296238009,-2564.9,0.00013986,2]
[368684788,1751296238019,-492.31717178,0.00013986,2]
[368684789,1751296238028,-3325.78,0.00013986,2]
[368684790,1751296238038,-609.87,0.00013986,2]
[368684791,1751296238047,-572.07,0.00013986,2]
[368684792,1751296238057,-490.0,0.00013986,2]
[368684793,1751296238067,-1589.24,0.00013986,2]
[368684794,1751296238076,-3582.43,0.00013986,2]
[368684795,1751296238086,-3796.69,0.00013986,2]
[368684796,1751296238096,-490.0,0.00013986,2]
[368684797,1751296238106,-490.0,0.00013986,2]
[368684798,1751296238118,-490.0,0.00013986,2]
[368684799,1751296238128,-490.0,0.00013986,2]
[368684800,1751296238138,-1883.18,0.00013986,2]
[368684801,1751296238149,-490.0,0.00013986,2]
[368684802,1751296238158,-650.52,0.00013986,2]
[368684803,1751296238167,-811.12,0.00013986,2]
[368684804,1751296238177,-3662.84,0.00013986,2]
[368684805,1751296238187,-490.0,0.00013986,2]
[368684806,1751296238196,-490.0,0.00013986,2]
[368684807,1751296238204,-1538.31,0.00013986,2]
[368684808,1751296238212,-490.0,0.00013986,2]
[368684809,1751296238221,-10648.0,0.00013986,2]
[368684810,1751296238229,-699.37,0.00013986,2]
[368684811,1751296238237,-490.0,0.00013986,2]
[368684812,1751296238245,-490.0,0.00013986,2]
[368684813,1751296238254,-490.0,0.00013986,2]
[368684814,1751296238263,-1576.57,0.00013986,2]
[368684815,1751296238272,-932.75,0.00013986,2]
[368684816,1751296238282,-490.0,0.00013986,2]
[368684817,1751296238291,-4867.03,0.00013986,2]
[368684818,1751296238300,-500.0,0.00013986,2]
[368684819,1751296238310,-490.0,0.00013986,2]
[368684820,1751296238320,-2382.56,0.00013986,2]
[368684821,1751296238330,-8787.19,0.00013986,2]
[368684822,1751296238339,-745.94,0.00013986,2]
[368684823,1751296238349,-490.0,0.00013986,2]
[368684825,1751296238359,-760.64,0.00013986,2]
[368684827,1751296238369,-547.23,0.00013986,2]
[368684829,1751296238379,-490.0,0.00013986,2]
[368684831,1751296238388,-5241.89,0.00013986,2]
[368684833,1751296238398,-490.0,0.00013986,2]
[368684835,1751296238408,-2271.03,0.00013986,2]
[368684836,1751296238417,-502.57,0.00013986,2]
[368684838,1751296238427,-1333.92,0.00013986,2]
[368684840,1751296238436,-1441.05,0.00013986,2]
[368684842,1751296238446,-490.0,0.00013986,2]
[368684844,1751296238456,-763.19,0.00013986,2]
[368684846,1751296238466,-1399.41,0.00013986,2]
[368684848,1751296238475,-867.97,0.00013986,2]
[368684851,1751296238485,-490.0,0.00013986,2]
[368684852,1751296238495,-490.0,0.00013986,2]
[368684881,1751296238750,-1191.42,0.00013986,2]
[368684883,1751296238761,-490.0,0.00013986,2]
[368684885,1751296238771,-1194.18,0.00013986,2]
[368684887,1751296238780,-2402.29,0.00013986,2]
[368684889,1751296238790,-490.0,0.00013986,2]
[368684891,1751296238799,-898.47,0.00013986,2]
[368684893,1751296238808,-722.25,0.00013986,2]
[368684895,1751296238818,-1047.91,0.00013986,2]
[368684897,1751296238827,-493.09336412,0.00013986,2]
[368684899,1751296238836,-2007.27,0.00013986,2]
[368684901,1751296238845,-207.77,0.00013986,2]
[368684903,1751296238854,-749.15,0.00013986,2]
[368684905,1751296238865,-490.0,0.00013986,2]
[368684907,1751296238875,-490.0,0.00013986,2]
[368684908,1751296238884,-1000.0,0.00013987,2]
[368684910,1751296238894,-823.0,0.00013987,2]
[368684912,1751296238905,-11396.65209491,0.00013987,2]
[368684914,1751296238915,-490.0,0.00013987,2]
[368684916,1751296238924,-789.71,0.00013987,2]
[368684918,1751296238935,-625.19,0.00013987,2]
[368684920,1751296238946,-490.0,0.00013987,2]
[368684922,1751296238957,-1000.0,0.00013987,2]
[368684924,1751296238967,-490.0,0.00013987,2]
[368684926,1751296238976,-490.0,0.00013987,2]
[368684928,1751296238986,-490.0,0.00013987,2]
[368684930,1751296238996,-710.55,0.00013987,2]
[368684932,1751296239006,-490.0,0.00013987,2]
[368684934,1751296239016,-550.94,0.00013987,2]
[368684936,1751296239026,-232.96107814,0.00013987,2]
[368684938,1751296239036,-490.0,0.00013987,2]
[368684940,1751296239047,-490.0,0.00013987,2]
[368684942,1751296239058,-490.0,0.00013987,2]
[368684944,1751296239068,-490.0,0.00013987,2]
[368684946,1751296239078,-490.0,0.00013987,2]
[368684948,1751296239087,-490.0,0.00013987,2]
[368684950,1751296239097,-1033.69,0.00013987,2]
[368684952,1751296239106,-490.0,0.00013987,2]
[368684954,1751296239116,-490.0,0.00013987,2]
[368684956,1751296239125,-490.0,0.00013987,2]
[368684958,1751296239135,-490.0,0.00013987,2]
[368684960,1751296239144,-490.0,0.00013987,2]
[368684962,1751296239154,-490.0,0.00013987,2]
[368684965,1751296239166,-490.0,0.00013987,2]
[368684966,1751296239175,-490.0,0.00013987,2]
[368684969,1751296239185,-490.0,0.00013987,2]
[368684971,1751296239195,-890.84888475,0.00013987,2]
[368685036,1751296239842,-317.34111525,0.00013987,2]
[368685037,1751296239852,-490.0,0.00013987,2]
[368685038,1751296239863,-490.0,0.00013987,2]
[368685039,1751296239874,-1092.88,0.00013987,2]
[368685040,1751296239883,-549.69545892,0.00013987,2]
[368685041,1751296239892,-490.0,0.00013987,2]
[368685042,1751296239902,-490.0,0.00013987,2]
[368685043,1751296239911,-541.9,0.00013987,2]
[368685044,1751296239920,-490.0,0.00013987,2]
[368685045,1751296239929,-403.53342583,0.00013987,2]
[368685046,1751296239942,-257.82657417,0.00013987,2]
[368685047,1751296239953,-1210.16,0.00013987,2]
[368685048,1751296239963,-1362.41,0.00013987,2]
[368685049,1751296239972,-773.29,0.00013987,2]
[368685050,1751296239981,-490.0,0.00013987,2]
[368685052,1751296239990,-490.0,0.00013987,2]
[368685054,1751296240000,-490.0,0.00013987,2]
[368685056,1751296240010,-490.0,0.00013987,2]
[368685058,1751296240019,-490.0,0.00013987,2]
[368685060,1751296240030,-371.2159533,0.00013987,2]
[368685062,1751296240039,-490.0,0.00013987,2]
[368685064,1751296240049,-490.0,0.00013987,2]
[368685066,1751296240058,-490.0,0.00013987,2]
[368685068,1751296240067,-165.46705004,0.00013987,2]
[368685070,1751296240077,-728.87,0.00013987,2]
[368685072,1751296240087,-490.0,0.00013987,2]
[368685074,1751296240096,-490.0,0.00013987,2]
[368685076,1751296240105,-1316.49,0.00013987,2]
[368685078,1751296240114,-490.0,0.00013987,2]
[368685080,1751296240125,-490.0,0.00013987,2]
[368685082,1751296240135,-490.0,0.00013987,2]
[368685085,1751296240144,-490.0,0.00013987,2]
[368685086,1751296240154,-490.0,0.00013987,2]
[368685088,1751296240163,-490.0,0.00013987,2]
[368685091,1751296240173,-951.48,0.00013987,2]
[368685092,1751296240183,-490.0,0.00013987,2]
[368685095,1751296240193,-490.0,0.00013987,2]
[368685097,1751296240203,-539.13,0.00013987,2]
[368685099,1751296240212,-180.46596742,0.00013987,2]
[368685102,1751296240234,-309.53403258,0.00013987,2]
[368685104,1751296240244,-490.0,0.00013987,2]
[368685106,1751296240254,-211.47596742,0.00013987,2]
[368685108,1751296240268,-278.52403258,0.00013987,2]
[368685110,1751296240278,-492.30902275,0.00013987,2]
[368685112,1751296240288,-490.0,0.00013987,2]
[368685114,1751296240298,-490.0,0.00013987,2]
[368685116,1751296240308,-338.69718467,0.00013987,2]
[368685123,1751296240357,-151.30281533,0.00013987,2]
[368685125,1751296240369,-1025.06,0.00013987,2]
[368685127,1751296240379,-490.0,0.00013987,2]
[368685129,1751296240389,-2390.68,0.00013987,2]
[368685131,1751296240398,-570.46,0.00013987,2]
[368685133,1751296240408,-490.0,0.00013987,2]
[368685135,1751296240417,-552.5,0.00013987,2]
[368685137,1751296240427,-490.0,0.00013987,2]
[368685139,1751296240436,-490.0,0.00013987,2]
[368685141,1751296240445,-490.0,0.00013987,2]
[368685143,1751296240453,-859.46,0.00013987,2]
[368685145,1751296240463,-490.0,0.00013987,2]
[368685147,1751296240472,-490.0,0.00013987,2]
[368685149,1751296240481,-490.0,0.00013987,2]
[368685151,1751296240490,-1120.7,0.00013987,2]
[368685153,1751296240500,-500.0,0.00013987,2]
[368685155,1751296240510,-490.0,0.00013987,2]
[368685157,1751296240519,-490.0,0.00013987,2]
[368685159,1751296240528,-490.0,0.00013987,2]
[368685161,1751296240538,-744.34,0.00013987,2]
[368685163,1751296240548,-1136.62,0.00013987,2]
[368685165,1751296240557,-490.0,0.00013987,2]
[368685167,1751296240567,-513.46,0.00013987,2]
[368685169,1751296240577,-490.0,0.00013987,2]
[368685171,1751296240586,-679.62,0.00013987,2]
[368685173,1751296240595,-490.0,0.00013987,2]
[368685175,1751296240605,-490.0,0.00013987,2]
[368685177,1751296240614,-566.29,0.00013987,2]
[368685179,1751296240626,-998.79,0.00013987,2]
[368685180,1751296240635,-490.0,0.00013987,2]
[368685182,1751296240644,-490.0,0.00013987,2]
[368685184,1751296240654,-385.89846021,0.00013987,2]
[368685186,1751296240663,-686.58,0.00013987,2]
[368685188,1751296240673,-442.50710644,0.00013987,2]
[368685190,1751296240682,-536.2,0.00013987,2]
[368685192,1751296240692,-490.0,0.00013987,2]
[368685194,1751296240702,-700.33,0.00013987,2]
[368685196,1751296240711,-707.9,0.00013987,2]
[368685198,1751296240721,-521.12,0.00013987,2]
[368685200,1751296240731,-547.77,0.00013987,2]
[368685202,1751296240740,-362.22310972,0.00013987,2]
[368685204,1751296240750,-150.0,0.00013987,2]
[368685206,1751296240759,-500.0,0.00013987,2]
[368685208,1751296240768,-150.0,0.00013987,2]
[368685210,1751296240778,-755.69,0.00013987,2]
[368685212,1751296240787,-150.35012517,0.00013987,2]
[368685214,1751296240796,-525.74454476,0.00013987,2]
[368685216,1751296240806,-150.0,0.00013987,2]
[368685218,1751296240815,-490.0,0.00013987,2]
[368685231,1751296240927,-580.69,0.00013987,2]
[368685233,1751296240937,-955.98,0.00013987,2]
[368685235,1751296240949,-490.0,0.00013987,2]
[368685236,1751296240960,-631.97,0.00013987,2]
[368685239,1751296240970,-1024.17,0.00013987,2]
[368685241,1751296240980,-490.0,0.00013987,2]
[368685243,1751296240989,-490.0,0.00013987,2]
[368685245,1751296240998,-490.0,0.00013987,2]
[368685247,1751296241008,-490.0,0.00013987,2]
[368685249,1751296241017,-490.0,0.00013987,2]
[368685250,1751296241027,-973.46,0.00013987,2]
[368685252,1751296241038,-1395.32,0.00013987,2]
[368685254,1751296241047,-552.7877893,0.00013987,2]
[368685256,1751296241057,-525.93,0.00013987,2]
[368685258,1751296241067,-533.98975611,0.00013987,2]
[368685260,1751296241077,-490.0,0.00013987,2]
[368685262,1751296241086,-599.36,0.00013987,2]
[368685264,1751296241095,-1594.83,0.00013987,2]
[368685266,1751296241104,-2523.1,0.00013987,2]
[368685268,1751296241114,-490.0,0.00013987,2]
[368685270,1751296241126,-495.37945826,0.00013987,2]
[368685272,1751296241136,-1500.0,0.00013987,2]
[368685274,1751296241145,-490.0,0.00013987,2]
[368685277,1751296241155,-490.0,0.00013987,2]
[368685279,1751296241164,-528.37,0.00013987,2]
[368685280,1751296241173,-886.63,0.00013987,2]
[368685282,1751296241182,-490.0,0.00013987,2]
[368685284,1751296241191,-490.0,0.00013987,2]
[368685286,1751296241200,-490.0,0.00013987,2]
[368685288,1751296241210,-737.62,0.00013987,2]
[368685290,1751296241219,-151.0,0.00013987,2]
[368685292,1751296241227,-838.4,0.00013987,2]
[368685294,1751296241237,-886.33,0.00013987,2]
[368685296,1751296241246,-490.0,0.00013987,2]
[368685298,1751296241256,-151.0,0.00013987,2]
[368685300,1751296241265,-151.0,0.00013987,2]
[368685302,1751296241275,-490.0,0.00013987,2]
[368685304,1751296241284,-470.66226619,0.00013987,2]
[368685306,1751296241293,-691.05,0.00013987,2]
[368685308,1751296241302,-1841.59,0.00013987,2]
[368685310,1751296241311,-490.0,0.00013987,2]
[368685312,1751296241321,-490.0,0.00013987,2]
[368685314,1751296241330,-490.0,0.00013987,2]
[368685316,1751296241339,-490.0,0.00013987,2]
[368685318,1751296241348,-1628.61,0.00013987,2]
[368685320,1751296241357,-901.32,0.00013987,2]
[368685321,1751296241366,-490.0,0.00013987,2]
[368685323,1751296241375,-1804.54,0.00013987,2]
[368685325,1751296241385,-490.0,0.00013987,2]
[368685327,1751296241394,-490.0,0.00013987,2]
[368685329,1751296241403,-490.0,0.00013987,2]
[368685331,1751296241413,-490.0,0.00013987,2]
[368685333,1751296241423,-490.0,0.00013987,2]
[368685335,1751296241432,-1036.81,0.00013987,2]
[368685337,1751296241441,-821.07,0.00013987,2]
[368685339,1751296241451,-490.0,0.00013987,2]
[368685341,1751296241460,-504.33,0.00013987,2]
[368685343,1751296241469,-490.0,0.00013987,2]
[368685345,1751296241479,-490.0,0.00013987,2]
[368685347,1751296241489,-490.0,0.00013987,2]
[368685349,1751296241498,-806.31,0.00013987,2]
[368685351,1751296241508,-262.518142,0.00013987,2]
[368685353,1751296241517,-490.0,0.00013987,2]
[368685355,1751296241527,-490.0,0.00013987,2]
[368685357,1751296241536,-1720.44,0.00013987,2]
[368685359,1751296241546,-151.0,0.00013987,2]
[368685361,1751296241555,-490.0,0.00013987,2]
[368685363,1751296241565,-270.445124,0.00013987,2]
[368685365,1751296241574,-1449.18,0.00013987,2]
[368685367,1751296241584,-490.0,0.00013987,2]
[368685369,1751296241593,-490.0,0.00013987,2]
[368685371,1751296241602,-490.0,0.00013987,2]
[368685373,1751296241611,-490.0,0.00013987,2]
[368685375,1751296241623,-1449.94,0.00013987,2]
[368685377,1751296241632,-490.0,0.00013987,2]
[368685379,1751296241641,-2321.01,0.00013987,2]
[368685381,1751296241650,-490.0,0.00013987,2]
[368685383,1751296241659,-573.84,0.00013987,2]
[368685385,1751296241668,-490.0,0.00013987,2]
[368685387,1751296241677,-490.0,0.00013987,2]
[368685389,1751296241686,-490.0,0.00013987,2]
[368685391,1751296241694,-490.0,0.00013987,2]
[368685393,1751296241702,-490.0,0.00013987,2]
[368685395,1751296241710,-1024.45,0.00013987,2]
[368685397,1751296241719,-490.0,0.00013987,2]
[368685398,1751296241727,-490.0,0.00013987,2]
[368685400,1751296241735,-490.0,0.00013987,2]
[368685402,1751296241744,-490.0,0.00013987,2]
[368685404,1751296241753,-2838.44,0.00013987,2]
[368685406,1751296241762,-490.0,0.00013987,2]
[368685408,1751296241772,-490.0,0.00013987,2]
[368685410,1751296241781,-909.09,0.00013987,2]
[368685412,1751296241791,-574.88,0.00013987,2]
[368685414,1751296241800,-490.0,0.00013987,2]
[368685416,1751296241809,-490.0,0.00013987,2]
[368685418,1751296241818,-151.0,0.00013987,2]
[368685420,1751296241827,-490.0,0.00013987,2]
[368685422,1751296241836,-151.0,0.00013987,2]
[368685424,1751296241845,-151.0,0.00013987,2]
[368685426,1751296241855,-490.0,0.00013987,2]
[368685428,1751296241865,-151.0,0.00013987,2]
[368685430,1751296241876,-2282.46,0.00013987,2]
[368685432,1751296241886,-490.0,0.00013987,2]
[368685434,1751296241895,-151.0,0.00013987,2]
[368685436,1751296241905,-1878.6,0.00013987,2]
[368685438,1751296241914,-151.0,0.00013987,2]
[368685440,1751296241924,-151.0,0.00013987,2]
[368685442,1751296241933,-1040.64,0.00013987,2]
[368685444,1751296241942,-1320.37,0.00013987,2]
[368685446,1751296241951,-151.0,0.00013987,2]
[368685448,1751296241961,-151.0,0.00013987,2]
[368685450,1751296241971,-151.0,0.00013987,2]
[368685452,1751296241980,-352.8970309,0.00013987,2]
[368685454,1751296241989,-490.0,0.00013987,2]
[368685456,1751296241998,-1006.54,0.00013987,2]
[368685458,1751296242007,-490.0,0.00013987,2]
[368685460,1751296242016,-490.0,0.00013987,2]
[368685462,1751296242025,-151.0,0.00013987,2]
[368685465,1751296242034,-151.0,0.00013987,2]
[368685468,1751296242043,-490.0,0.00013987,2]
[368685470,1751296242053,-527.57,0.00013987,2]
[368685472,1751296242062,-490.0,0.00013987,2]
[368685474,1751296242071,-490.0,0.00013987,2]
[368685476,1751296242080,-490.0,0.00013987,2]
[368685478,1751296242089,-2340.88,0.00013987,2]
[368685480,1751296242098,-496.2,0.00013987,2]
[368685482,1751296242107,-490.0,0.00013987,2]
[368685484,1751296242116,-1320.39,0.00013987,2]
[368685486,1751296242126,-490.0,0.00013987,2]
[368685488,1751296242135,-1966.05,0.00013987,2]
[368685490,1751296242144,-1225.26,0.00013987,2]
[368685491,1751296242153,-490.0,0.00013987,2]
[368685493,1751296242162,-151.0,0.00013987,2]
[368685495,1751296242171,-490.0,0.00013987,2]
[368685497,1751296242180,-91.81066155,0.00013987,2]
[368685727,1751296244622,-584.42,0.00013878,2]
[368685728,1751296244632,-1130.46008183,0.00013899,2]
[368685729,1751296244644,-425.0,0.00013899,2]
[368685730,1751296244663,-490.0,0.00013888,2]
[368685731,1751296244672,-2266.14442028,0.00013899,2]
[368685732,1751296244684,-665.1143884,0.00013899,2]
[368685770,1751296245996,-490.0,0.00013888,2]
[368685771,1751296246006,-45.0,0.00013899,2]
[368685772,1751296246018,-1748.93454835,0.00013899,2]
[368685773,1751296246104,-299.53150304,0.00013888,2]
[368685774,1751296246115,-336.46849696,0.00013888,2]
[368685775,1751296246127,-1023.23150304,0.00013899,2]
[368685776,1751296246139,-36.9850581,0.00013899,2]
[368685777,1751296246148,-488.30279841,0.00013899,2]
[368685806,1751296246924,-72.96720159,0.00013899,2]
[368685807,1751296246934,-629.37786132,0.000139,2]
[368685808,1751296246944,-150.0,0.00013939,2]
[368685809,1751296246954,-134.00465768,0.00013979,2]
[368685810,1751296247001,250.0,0.00013065,2]
[368685811,1751296247014,-365.99534232,0.00013979,2]
[368685812,1751296247024,-148.12173178,0.00013979,2]
[368685842,1751296247721,-490.0,0.00013888,2]
[368685843,1751296247732,-53.36777145,0.00013979,2]
[368685844,1751296247741,-245.60083018,0.00013979,2]
[368685845,1751296247753,-164.25251536,0.00013979,2]
[368685846,1751296247763,-227.94263315,0.00013979,2]
[368685847,1751296247772,-584.63857469,0.00013986,2]
[368685848,1751296247784,-514.85164657,0.00013986,2]
[368685849,1751296247934,-445.47977874,0.00013986,2]
[368685850,1751296247945,-197.90673341,0.00013986,2]
[368685851,1751296247955,-161.599781,0.00013986,2]
[368685852,1751296247965,-596.59144476,0.00013986,2]
[368685853,1751296247977,-2841.38855524,0.00013986,2]
[368685854,1751296247987,-161.599781,0.00013986,2]
[368685855,1751296247996,-490.0,0.00013986,2]
[368685856,1751296248006,-490.0,0.00013986,2]
[368685857,1751296248015,-923.33835347,0.00013987,2]
[368685858,1751296248030,-455.0,0.00013987,2]
[368685872,1751296259700,504.0,0.00012927,2]
[368685873,1751296319211,201.0,0.00012927,2]
[368685874,1751296324930,1000.0,0.0001388,4]
[368685875,1751296382597,1000.0,0.00013001,2]
[368685877,1751296398568,503.8,0.00013102,2]
[368685879,1751296503149,2000.0,0.00027397,120]
[368685880,1751296509705,2000.0,0.00027397,120]
[368685881,1751296512193,2000.0,0.00027397,120]
[368685882,1751296545250,229.0,0.00027397,120]
[368685888,1751296574057,404.29,0.00012954,2]
[368685889,1751296637397,184.2,0.00012954,2]
[368685891,1751296814847,9331.71,0.00012926,2]
[368685892,1751296830998,531.87,0.00012925,2]
[368685896,1751296938638,-150.0,0.00013706,2]
[368685897,1751296938663,-150.0,0.00013709,2]
[368685898,1751296938689,-150.0,0.00013712,2]
[368685899,1751296938713,-150.0,0.00013714,2]
[368685900,1751296938739,-150.0,0.00013716,2]
[368685901,1751296938764,-150.0,0.00013716,2]
[368685902,1751296938789,-150.0,0.00013719,2]
[368685903,1751296938814,-150.0,0.00013728,2]
[368685904,1751296938838,-150.0,0.00013731,2]
[368685905,1751296938862,-150.0,0.00013732,2]
[368685906,1751296938886,-150.0,0.00013735,2]
[368685907,1751296938910,-150.0,0.00013736,2]
[368685908,1751296938936,-150.0,0.00013736,2]
[368685909,1751296938962,-150.0,0.00013738,2]